[Event "Israel-ch Youth U8-18 2024"]
[Site "Kfar Saba"]
[Date "2024.04.17"]
[Round "3.14"]
[White "Ronin, Ilan"]
[Black "Arolovich, Eliav"]
[Result "1-0"]
[ECO "B21"]
[WhiteElo "1555"]
[BlackElo "1461"]
[Annotator "NA RC COMBH"]
[PlyCount "47"]
[EventDate "2024.04.10"]
[EventType "swiss"]
[EventCountry "ISR"]
[SourceTitle "playchess.com"]
[Source "ChessBase"]
[SourceQuality "1"]
[TimeControl "5400+30"]

1. e4 {[%emt 0:00:05]} c5 {[%emt 0:00:08]} 2. d4 {[%emt 0:00:11]} cxd4 {[%emt 0:00:18]} 3. c3 {[%emt 0:00:08]} dxc3 {[%emt 0:00:14]} 4. Nxc3 {[%emt 0:00:07]} d6 {[%emt 0:00:25]} 5. Nf3 {[%emt 0:00:36]} Nf6 {[%emt 0:00:27]} 6. Bc4 {[%emt 0:00:28]} Nc6 {[%emt 0:00:57]} 7. e5 {[%emt 0:02:02]} dxe5 {[%emt 0:01:44]} 8. Qxd8+ {[%emt 0:00:10]} Kxd8 {[%emt 0:00:57]} 9. Ng5 {[%emt 0:00:52]} Be6 {[%emt 0:02:47]} 10. Bxe6 {[%emt 1:30:51]} fxe6 {[%emt 0:00:28]} 11. Nf7+ {[%emt 0:00:00]} Ke8 {[%emt 0:00:25]} 12. Nxh8 {[%emt 0:00:00]} Nb4 {[%emt 0:01:40]} 13. O-O {[%emt 0:00:00]} Rd8 {[%emt 0:00:32]} 14. Bg5 {[%emt 0:00:00]} a6 {[%emt 0:02:06]} 15. Na4 {[%emt 0:00:00]} Ne4 {[%emt 0:01:17]} 16. Be3 {[%emt 0:03:00]} Nd3 {[%emt 0:01:26]} 17. f3 {[%emt 0:00:00]} Nf6 {[%emt 0:01:19]} 18. Nc5 {[%emt 0:00:00]} Nxc5 {[%emt 0:02:34]} 19. Bxc5 {[%emt 0:00:00]} g5 {[%emt 0:00:25]} 20. Bb6 {[%emt 0:00:00]} Rd5 {[%emt 0:01:09]} 21. Rac1 {[%emt 0:00:00]} Kd7 {[%emt 0:04:09]} 22. Nf7 {[%emt 0:00:00]} h6 {[%emt 0:00:32]} 23. Rfd1 {[%emt 0:00:00]} Bg7 {[%emt 0:02:24]} 24. Nxe5+ {[%emt 0:00:00]} 1-0

[Event "Israel-ch Youth U8-18 2024"]
[Site "Kfar Saba"]
[Date "2024.04.17"]
[Round "3.15"]
[White "Roth, Elai"]
[Black "Blekh, Erik"]
[Result "1/2-1/2"]
[ECO "B13"]
[WhiteElo "1537"]
[BlackElo "1696"]
[Annotator "NA RC COMBH"]
[PlyCount "83"]
[EventDate "2024.04.10"]
[EventType "swiss"]
[EventCountry "ISR"]
[SourceTitle "playchess.com"]
[Source "ChessBase"]
[SourceQuality "1"]
[TimeControl "5400+30"]

1. e4 {[%emt 0:00:03]} c5 {[%emt 0:01:01]} 2. c3 {[%emt 0:00:05]} Nf6 {[%emt 0:00:18]} 3. e5 {[%emt 0:00:14]} Nd5 {[%emt 0:00:17]} 4. d4 {[%emt 0:00:09]} cxd4 {[%emt 0:00:27]} 5. cxd4 {[%emt 0:00:07]} d6 {[%emt 0:00:38]} 6. exd6 {[%emt 0:03:52]} Qxd6 {[%emt 0:00:22]} 7. Nc3 {[%emt 0:00:34]} Nc6 {[%emt 0:02:43]} 8. Nf3 {[%emt 0:04:46]} Bg4 {[%emt 0:02:25]} 9. Be2 {[%emt 0:04:05]} e6 {[%emt 0:10:52]} 10. O-O {[%emt 0:06:53]} Be7 {[%emt 0:02:38]} 11. h3 {[%emt 0:08:26]} Bh5 {[%emt 0:01:01]} 12. Nxd5 {[%emt 0:04:11]} Qxd5 {[%emt 0:01:20]} 13. Qd3 {[%emt 0:03:48]} Bg6 {[%emt 0:05:43]} 14. Qb5 {[%emt 0:02:04]} Qxb5 {[%emt 0:04:15]} 15. Bxb5 {[%emt 0:00:04]} O-O {[%emt 0:00:27]} 16. Bf4 {[%emt 0:05:40]} Be4 {[%emt 0:03:45]} 17. Bxc6 {[%emt 0:03:37]} Bxc6 {[%emt 0:00:13]} 18. Ne5 {[%emt 0:00:29]} Bd5 {[%emt 0:01:33]} 19. Rfd1 {[%emt 0:02:50]} Rfd8 {[%emt 0:01:54]} 20. Rac1 {[%emt 0:04:50]} Rac8 {[%emt 0:01:25]} 21. b3 {[%emt 0:03:40]} Ba3 {[%emt 0:05:06]} 22. Rxc8 {[%emt 0:41:03]} Rxc8 {[%emt 0:00:12]} 23. Rd3 {[%emt 0:00:00]} Bb4 {[%emt 0:11:18]} 24. Rd1 {[%emt 0:00:00]} Rc2 {[%emt 0:03:04]} 25. Rc1 {[%emt 0:00:00]} Be4 {[%emt 0:02:53]} 26. f3 {[%emt 0:00:00]} Rxc1+ {[%emt 0:02:02]} 27. Bxc1 {[%emt 0:00:00]} Bb1 {[%emt 0:00:46]} 28. a3 {[%emt 0:00:00]} Bc3 {[%emt 0:00:53]} 29. Be3 {[%emt 0:00:00]} a5 {[%emt 0:01:55]} 30. Nc4 {[%emt 0:00:00]} Ba2 {[%emt 0:02:37]} 31. Nd2 {[%emt 0:00:00]} b6 {[%emt 0:01:07]} 32. Nc4 {[%emt 0:00:00]} a4 {[%emt 0:01:29]} 33. Nxb6 {[%emt 0:00:00]} axb3 {[%emt 0:00:20]} 34. Na4 {[%emt 0:00:00]} Ba1 {[%emt 0:00:46]} 35. Bc1 {[%emt 0:00:00]} Bxd4+ {[%emt 0:00:34]} 36. Kh1 {[%emt 0:00:00]} Kf8 {[%emt 0:00:21]} 37. Bb2 {[%emt 0:00:00]} Bxb2 {[%emt 0:00:57]} 38. Nxb2 {[%emt 0:00:00]} Ke7 {[%emt 0:00:31]} 39. Kg1 {[%emt 0:00:00]} Kd6 {[%emt 0:00:16]} 40. Kf2 {[%emt 0:00:00]} Bb1 {[%emt 0:01:19]} 41. Ke3 {[%emt 0:00:00]} Bc2 {[%emt 0:00:39]} 42. Kd4 {[%emt 0:10:00]} 1/2-1/2

[Event "Israel-ch Youth U8-18 2024"]
[Site "Kfar Saba"]
[Date "2024.04.18"]
[Round "4.1"]
[White "Sokolovsky, Yahli"]
[Black "Rozen, Eytan"]
[Result "1-0"]
[ECO "B27"]
[WhiteElo "2490"]
[BlackElo "2499"]
[Annotator "TA"]
[PlyCount "73"]
[EventDate "2024.04.10"]
[EventType "swiss"]
[EventCountry "ISR"]
[SourceTitle "playchess.com"]
[Source "ChessBase"]
[SourceQuality "1"]
[TimeControl "5400+30"]

{[%evp 9,73,20,11,13,6,12,33,16,0,12,0,0,8,14,7,6,0,0,13,0,0,6,11,0,0,-8,0,-16,0,0,0,-7,12,8,28,22,12,27,47,30,37,30,38,49,114,121,102,105,112,89,222,235,272,266,575,647,629,623,904,881,1112,1088,2389,2112,1858,1708]} 1. e4 {[%emt 0:00:05]} c5 {[%emt 0:00:48]} 2. Nf3 {[%emt 0:00:07]} g6 {[%emt 0:00:41]} 3. c3 {[%emt 0:00:32]} d5 {[%emt 0:00:09]} 4. e5 {[%emt 0:00:04]} a6 {[%emt 0:00:08]} 5. d4 {[%emt 0:00:39]} Nc6 {[%emt 0:00:07]} 6. Be2 {[%emt 0:01:20]} Bg7 {[%emt 0:00:22]} 7. O-O {[%emt 0:01:15]} f6 {[%emt 0:00:05][%cal Rf6e5]} 8. Nbd2 {[%emt 0:00:32] White is slightly better.} (8. dxc5 fxe5 9. Ng5 Nf6 $15) 8... cxd4 {[%emt 0:01:35]} 9. cxd4 {[%emt 0:00:05]} Nh6 {[%emt 0:00:32]} 10. exf6 {[%emt 0:01:39]} exf6 {[%emt 0:00:21]} 11. Nb3 {[%emt 0:01:06]} O-O {[%emt 0:01:02]} 12. h3 {[%emt 0:05:30]} Qd6 {[%emt 0:03:51]} 13. Bd2 {[%emt 0:02:50]} b6 {[%emt 0:04:59]} 14. Nc1 {[%emt 0:07:25]} Nf5 {[%emt 0:06:26]} 15. Bc3 {[%emt 0:10:51]} Bd7 {[%emt 0:02:09]} 16. Qb3 {[%emt 0:06:35]} Na5 {[%emt 0:02:42]} 17. Qc2 {[%emt 0:02:16]} Rfc8 {[%emt 0:03:35]} 18. Bd3 {[%emt 0:02:52]} Nc4 {[%emt 0:02:49]} 19. a4 {[%emt 0:05:43]} Bf8 {[%emt 0:05:05]} 20. Ne2 {[%emt 0:01:06]} Rc7 {[%emt 0:03:31]} 21. Rfe1 {[%emt 0:01:13]} Na5 {[%emt 0:06:26]} 22. Qd1 {[%emt 0:03:30]} Bh6 {[%emt 0:03:51]} 23. Nh2 {[%emt 0:02:18]} Nc6 {[%emt 0:03:42]} 24. Ng4 {[%emt 0:01:28] Bxf5 is the strong threat.} Bg7 {[%emt 0:01:45]} 25. Qd2 {[%emt 0:02:01]} Be6 {[%emt 0:07:20]} 26. Qf4 {[%emt 0:04:31]} Qd7 {[%emt 0:02:44]} ({Black should try} 26... Rd7 $14) 27. Ng3 $16 {[%emt 0:06:19]} Nxg3 {[%emt 0:00:38][%cal Bf5g3,Bg3h5,Bh5f6][%mdl 32]} 28. Rxe6 $1 {[%emt 0:04:33]} Nh5 {[%emt 0:01:10]} 29. Qd6 $36 {[%emt 0:02:16][%mdl 2048] Keeping Black busy. White is much more active.} Qf7 {[%emt 0:00:43] [#] Black cannot hold the game after this.} (29... Qxd6 $16 {was called for.} 30. Rxd6 f5) 30. Rae1 $1 $18 {[%emt 0:02:29][%cal Ba1e1,Be1e5,Be5e6][%mdl 32]} (30. Qxd5 $2 Nf4 31. Qd6 Nxe6 $19 (31... Qxe6 32. Qxf4 Rd7 33. d5 $16)) 30... f5 {[%emt 0:03:25] [#]} 31. Qxd5 $1 {[%emt 0:22:50] aiming for Re8+.} (31. Ne5 Nxe5 32. R6xe5 (32. dxe5 $2 Nf4 $19) 32... Bxe5 33. dxe5 Qd7 $18) 31... Kh8 $2 {[%emt 0:06:55]} ({But not} 31... Nf4 $2 32. Re8+ Rxe8 33. Rxe8+ Bf8 34. Nh6+ Kg7 35. Qxf7+ (35. Nxf7 Nxd5 36. Ng5 Re7 $18) 35... Rxf7 36. Nxf7 Kxf7 37. Rc8 Nxd3 38. Rxc6 $18) (31... fxg4 {is a better chance.} 32. Bc4 Nf6 33. Rxf6 Bxf6) 32. Ne5 {[%emt 0:00:00] White is clearly winning.} Bxe5 {[%emt 0:00:05]} 33. R1xe5 {[%emt 0:00:00]} ({Not} 33. dxe5 Nf4 $16) 33... Nf6 {[%emt 0:02:17] Repels Re8+} 34. Qf3 {[%emt 0:00:00]} Rac8 {[%emt 0:03:32] [#]} 35. d5 $1 {[%emt 0:00:00]} Ne7 {[%emt 0:01:15] [#]} (35... Nxe5 36. Bxe5) 36. Rxf6 $1 {[%emt 0:00:00][%mdl 512]} Qxf6 {[%emt 0:00:06]} 37. Re6 {[%emt 0:00:00] Weighted Error Value: White=0.03 (flawless) /Black=0.30.  Mistake:       	---       	Black=3      OK:         	White=13    	Black=10     Best:        	White=1     	Black=1      Strong:       	White=3     	---} (37. Bxa6 $2 {perishes.} Rxc3 38. bxc3 Qxe5 $19) 1-0

[Event "Israel-ch Youth U8-18 2024"]
[Site "Kfar Saba"]
[Date "2024.04.18"]
[Round "4.2"]
[White "Zuev, Ilya"]
[Black "Levin, Guy"]
[Result "0-1"]
[ECO "D25"]
[WhiteElo "1883"]
[BlackElo "2451"]
[Annotator "TA"]
[PlyCount "82"]
[EventDate "2024.04.10"]
[EventType "swiss"]
[EventCountry "ISR"]
[SourceTitle "playchess.com"]
[Source "ChessBase"]
[SourceQuality "1"]
[TimeControl "5400+30"]

{[%evp 19,82,24,37,27,30,32,73,25,31,0,0,0,45,16,14,1,7,0,0,0,0,-3,-5,-18,-10,-20,-24,-29,0,-150,-139,-193,-185,-275,-283,-303,-244,-283,-291,-310,-274,-434,-410,-429,-429,-413,-398,-508,-412,-485,-483,-473,-435,-433,-294,-339,0,-414,-334,-595,-596,-585,-548,-1557,-1295]} 1. d4 {[%emt 0:00:02]} d5 {[%emt 0:00:25]} 2. Nf3 {[%emt 0:00:08]} Nf6 {[%emt 1:31:05]} 3. c4 {[%emt 0:00:10]} dxc4 {[%emt 0:00:00]} 4. e3 {[%emt 0:00:10]} Bg4 {[%emt 0:00:00]} 5. Bxc4 {[%emt 0:00:07]} e6 {[%emt 0:00:00]} 6. O-O {[%emt 0:00:50]} Be7 {[%emt 0:00:00]} 7. Nc3 {[%emt 0:00:26]} O-O {[%emt 0:00:00]} 8. Be2 {[%emt 0:00:25]} Nbd7 {[%emt 0:00:00]} 9. e4 {[%emt 0:04:06]} c6 {[%emt 0:00:00]} 10. h3 {[%emt 0:08:04]} Bh5 {[%emt 0:00:00]} 11. Bf4 {[%emt 0:02:31]} Nb6 {[%emt 0:00:00]} 12. Qd3 {[%emt 0:08:25]} a5 {[%emt 0:00:00]} 13. a4 {[%emt 0:03:39]} (13. Rad1 $16) 13... Bb4 {[%emt 0:00:00]} 14. Ne5 {[%emt 0:10:47]} Bxe2 {[%emt 0:00:00]} 15. Nxe2 {[%emt 0:01:32]} h6 {[%emt 0:00:00]} 16. b3 {[%emt 0:10:45]} Nbd7 {[%emt 0:00:00]} 17. Rfd1 {[%emt 0:08:25]} Nxe5 {[%emt 0:00:00]} 18. Bxe5 {[%emt 0:00:31]} Qe7 {[%emt 0:00:00]} 19. Rac1 {[%emt 0:08:07]} Rfd8 {[%emt 0:00:00]} 20. Kh1 {[%emt 0:06:39]} Rd7 {[%emt 0:00:00]} 21. Ng1 {[%emt 0:05:12]} Nh7 {[%emt 0:00:00]} 22. Nf3 {[%emt 0:01:41]} Ng5 {[%emt 0:00:00]} 23. Nxg5 {[%emt 0:04:07]} hxg5 {[%emt 0:00:00]} 24. g4 {[%emt 0:04:12] [#] Black continues to play with concentration.} ({White should play} 24. Qc4 $11) 24... Rad8 $1 $17 {[%emt 0:00:00]} 25. f3 {[%emt 0:02:06]} (25. Qe3 $17 {keeps fighting.}) 25... c5 $19 {[%emt 0:00:00]} 26. Rc4 {[%emt 0:03:39]} (26. Kg2 $142) 26... f6 {[%emt 0:00:00]} 27. Bg3 {[%emt 0:00:14]} Rxd4 {[%emt 0:00:00]} ({Weaker is} 27... cxd4 28. e5 $17) 28. Rxd4 {[%emt 0:00:10]} Rxd4 {[%emt 0:00:00]} ({Don't take} 28... cxd4 29. e5 $19) 29. Qe2 {[%emt 0:00:24]} Qd7 {[%emt 0:00:00]} 30. Rxd4 {[%emt 0:00:06]} (30. Rf1 $142) 30... cxd4 {[%emt 0:00:00][%mdl 4096] Endgame. KQB-KQB} ({Not} 30... Qxd4 31. Qb5 $15) 31. Qd3 {[%emt 0:00:18]} e5 {[%emt 0:00:00]} 32. Kg2 {[%emt 0:02:18]} Qc6 {[%emt 0:00:00]} 33. Kf2 {[%emt 0:00:51]} Kf8 {[%emt 0:00:00]} 34. h4 {[%emt 0:02:24]} gxh4 {[%emt 0:00:00]} 35. Bxh4 {[%emt 0:00:05]} Qc1 {[%emt 0:00:00]} 36. Ke2 {[%emt 0:00:39]} Qb2+ {[%emt 0:04:51]} 37. Kf1 {[%emt 0:00:23]} Qc1+ {[%emt 0:01:16]} 38. Ke2 $1 {[%emt 0:00:24]} Ke7 {[%emt 0:00:01] White must now prevent ...Bc3.} 39. Bg3 $2 {[%emt 0:00:51] [#]} (39. Bf2) 39... Bc3 {[%emt 0:01:01] Black is clearly winning.} 40. Qd1 {[%emt 0:00:49]} Qb2+ {[%emt 0:02:02]} 41. Kd3 {[%emt 0:00:33]} Qg2 {[%emt 0:10:19] Weighted Error Value: White=0.59/Black=0.33.  Mistake:       	White=6     	---        Inaccurate:     	White=3     	Black=4      OK:         	White=4     	Black=10     Best:        	White=1     	Black=6      Strong:       	White=1     	---} 0-1

[Event "Israel-ch Youth U8-18 2024"]
[Site "Kfar Saba"]
[Date "2024.04.18"]
[Round "4.3"]
[White "Aizenberg, Benny"]
[Black "Goldstein, Asaf"]
[Result "1-0"]
[ECO "B27"]
[WhiteElo "2409"]
[BlackElo "1878"]
[Annotator "TA"]
[PlyCount "129"]
[EventDate "2024.04.10"]
[EventType "swiss"]
[EventCountry "ISR"]
[SourceTitle "playchess.com"]
[Source "ChessBase"]
[SourceQuality "1"]
[TimeControl "5400+30"]

{[%evp 10,129,34,16,0,2,20,24,29,20,17,14,14,0,10,0,3,-14,0,-20,-17,-16,-22,-13,-12,-66,-61,-48,-46,-81,-22,-22,-25,-23,-25,-31,-18,-33,-3,0,0,0,0,0,0,0,0,-1,-1,-7,0,0,0,0,0,0,0,0,0,0,0,0,0,0,0,0,0,0,0,0,0,0,0,0,29,0,25,0,499,510,510,502,485,486,435,401,1179,1099,1225,1064,3198,3091,2657,2512,2215,1452,1566,1290,29953,5304,8827,6382,5489,4720,5401,2170,29964,29964,29963,29966,29965,29966,29964,29964,29968,29969,29965,5106,29976,29977,29959,6578]} 1. e4 {[%emt 0:00:03]} c5 {[%emt 0:00:05]} 2. Nf3 {[%emt 0:00:03]} g6 {[%emt 0:00:09]} 3. c3 {[%emt 0:00:18]} Bg7 {[%emt 0:00:07]} 4. d4 {[%emt 0:00:04]} cxd4 {[%emt 0:00:05]} 5. cxd4 {[%emt 0:00:04]} d5 {[%emt 0:00:13]} 6. Bb5+ {[%emt 0:01:06]} Bd7 {[%emt 0:02:42]} 7. Bxd7+ {[%emt 0:00:05]} Nxd7 {[%emt 0:04:32]} 8. e5 {[%emt 0:00:05]} e6 {[%emt 0:07:29] White has an edge.} 9. O-O {[%emt 0:00:07]} Ne7 {[%emt 0:00:24]} 10. Bg5 {[%emt 0:00:15]} h6 {[%emt 0:02:21]} 11. Bxe7 {[%emt 0:00:14]} Qxe7 {[%emt 0:00:12]} 12. Nc3 {[%emt 0:00:03]} O-O {[%emt 0:01:28]} 13. Nb5 {[%emt 0:01:34]} Nb6 {[%emt 0:03:29]} 14. Qd3 {[%emt 0:01:00]} a6 {[%emt 0:02:18]} 15. Nd6 {[%emt 0:00:08]} Nc8 {[%emt 0:01:47]} 16. Nxc8 $1 {[%emt 0:02:20]} Rfxc8 {[%emt 0:01:58]} 17. Nd2 {[%emt 0:00:17]} ({White should try} 17. Rfc1 $11) 17... Rc6 {[%emt 0:07:36]} 18. Rac1 {[%emt 0:07:42]} Rac8 {[%emt 0:08:05]} 19. Nb3 {[%emt 0:02:15][%cal Bd2b3,Bb3c1,Bc1d3][%mdl 32]} Bf8 {[%emt 0:04:25]} (19... Qb4 $17 {aiming for ...Rxc1.} 20. Rxc6 Rxc6) 20. Rxc6 $11 {[%emt 0:08:15]} Rxc6 {[%emt 0:00:53]} 21. Rc1 {[%emt 0:00:04]} Rxc1+ {[%emt 0:08:58]} 22. Nxc1 {[%emt 0:00:09][%mdl 4096] Endgame. KQB-KQN} Qb4 {[%emt 0:00:17]} 23. Qc3 {[%emt 0:02:11]} Qxc3 {[%emt 0:07:27]} 24. bxc3 $15 {[%emt 0:01:58] KB-KN} Ba3 {[%emt 0:01:16]} 25. Nd3 {[%emt 0:00:10]} Kf8 {[%emt 0:01:48]} 26. Kf1 {[%emt 0:00:05]} Ke7 {[%emt 0:02:39]} 27. Ke2 {[%emt 0:00:07]} Kd7 {[%emt 0:02:11]} 28. Kd2 {[%emt 0:01:13]} a5 {[%emt 0:07:13]} 29. Kc2 {[%emt 0:02:31]} a4 {[%emt 0:14:58]} 30. Ne1 {[%emt 0:00:06]} b5 {[%emt 0:02:27]} 31. Kd3 {[%emt 0:00:27]} Be7 {[%emt 0:02:43]} 32. g3 {[%emt 0:00:20]} Kc6 {[%emt 0:01:05]} 33. Nc2 {[%emt 0:00:10]} Kd7 {[%emt 0:01:55]} 34. Ne3 {[%emt 0:00:42]} Kc6 {[%emt 0:01:27]} 35. Ng4 {[%emt 0:00:08]} Bf8 {[%emt 0:00:08]} 36. f3 {[%emt 0:01:36][%cal Bf2f3,Bf3f4,Bf4f5][%mdl 32]} Kb6 {[%emt 0:00:14]} 37. Ne3 {[%emt 0:03:44]} Ka5 {[%emt 0:00:28]} 38. f4 {[%emt 0:01:21]} Kb6 {[%emt 0:00:28]} 39. g4 {[%emt 0:01:06]} Kc7 {[%emt 0:00:19]} 40. Ke2 {[%emt 0:04:10]} Kb6 {[%emt 0:00:52]} 41. f5 {[%emt 0:00:54]} Ka5 {[%emt 0:00:27]} 42. Kd3 {[%emt 0:00:33]} Kb6 {[%emt 0:00:07]} 43. Ng2 {[%emt 0:00:13] [#] And now fxg6 would win.} Kc7 $2 {[%emt 0:00:36][%mdl 8192] Black is on the road to losing.} (43... gxf5 $11 44. gxf5 Kc6) 44. fxe6 {[%emt 0:00:08]} fxe6 {[%emt 0:00:14]} 45. Nf4 $1 {[%emt 0:00:04][%csl LRe6,LRg6]} Kd7 {[%emt 0:01:24]} 46. Nxg6 {[%emt 0:00:04]} Ba3 {[%emt 0:00:58]} 47. Nf4 {[%emt 0:01:12]} Ke7 {[%emt 0:00:23]} (47... b4 $142 48. cxb4 Bxb4) 48. h4 $18 {[%emt 0:01:30][%cal Bh2h4,Bh4g5,Bg5g6][%mdl 32]} Kf7 {[%emt 0:00:19]} 49. g5 {[%emt 0:00:41]} hxg5 {[%emt 0:00:11]} 50. hxg5 {[%emt 0:00:04]} Bf8 {[%emt 0:01:06]} 51. Kc2 {[%emt 0:00:21]} Bg7 {[%emt 0:00:29]} 52. Kb1 {[%emt 0:00:38]} Bf8 {[%emt 0:00:30]} 53. Kb2 {[%emt 0:00:05]} Bg7 {[%emt 0:00:31]} 54. g6+ {[%emt 0:00:23]} Ke7 {[%emt 0:00:24]} 55. Ka3 {[%emt 0:00:05] [#] White wants to mate with Nd3.} Bh6 {[%emt 0:00:33]} 56. Nh5 {[%emt 0:00:11]} Bc1+ {[%emt 0:00:33]} 57. Kb4 {[%emt 0:00:05]} Bd2 {[%emt 0:00:11]} 58. Nf6 {[%emt 0:00:39]} Kf8 {[%emt 0:00:18]} 59. Nd7+ {[%emt 0:00:06]} Kg7 {[%emt 0:00:09]} 60. Nc5 {[%emt 0:00:05]} (60. Kxb5 Bxc3 61. Nc5 (61. Kxa4 Kxg6 62. Kb5 Bxd4 $11) 61... Kxg6 $14) 60... Kxg6 {[%emt 0:00:31]} 61. Nxe6 {[%emt 0:00:05]} ({Not} 61. Kxb5 Bxc3 62. Nxe6 Kf5 63. Ng7+ Kg6 $11) 61... Kf7 {[%emt 0:00:28]} 62. Nc7 {[%emt 0:00:06]} Ke7 {[%emt 0:01:12]} 63. Nxd5+ {[%emt 0:00:06]} Ke6 {[%emt 0:00:19]} 64. Nc7+ {[%emt 0:00:04]} Kd7 {[%emt 0:00:25]} 65. Nxb5 {[%emt 0:00:05] Weighted Error Value: White=0.09 (flawless) /Black=0.65.  Loses game:     	---       	Black=1      Mistake:       	White=1     	Black=2      Inaccurate:     	White=2     	Black=2      OK:         	White=15    	Black=15     Best:        	White=2     	---        Strong:       	White=1     	---} 1-0

[Event "Israel-ch Youth U8-18 2024"]
[Site "Kfar Saba"]
[Date "2024.04.18"]
[Round "4.4"]
[White "Beitner, Yehonatan"]
[Black "Menahem, Adi"]
[Result "0-1"]
[ECO "C02"]
[WhiteElo "1877"]
[BlackElo "2112"]
[Annotator "TA"]
[PlyCount "60"]
[EventDate "2024.04.10"]
[EventType "swiss"]
[EventCountry "ISR"]
[SourceTitle "playchess.com"]
[Source "ChessBase"]
[SourceQuality "1"]
[TimeControl "5400+30"]

{[%evp 15,60,-27,-27,-43,-37,-35,-37,-43,-37,-41,0,-45,-49,-153,-159,-216,-214,-222,-217,-210,-206,-262,-160,-335,-330,-343,-196,-200,-200,-188,-204,-203,-219,-314,-301,-337,-327,-330,-308,-292,-263,-311,-312,-569,-570,-799,-784]} 1. e4 {[%emt 0:00:02]} c6 {[%emt 0:00:19][%cal Bc7c6,Bc6c5][%mdl 32]} 2. d4 {[%emt 0:00:06]} d5 {[%emt 0:00:05]} 3. f3 {[%emt 0:00:09]} e6 {[%emt 0:00:57]} 4. e5 {[%emt 0:01:19]} c5 {[%emt 0:00:38]} 5. c3 {[%emt 0:00:06]} Nc6 {[%emt 0:00:27]} 6. f4 {[%emt 0:00:25]} Qb6 {[%emt 0:00:49]} 7. Nf3 {[%emt 0:00:17]} cxd4 {[%emt 0:00:41]} 8. cxd4 {[%emt 0:00:09]} Nh6 {[%emt 0:00:29][%cal Bg8h6,Bh6f5,Bf5d4][%mdl 32]} 9. Nc3 {[%emt 0:07:59]} Nf5 {[%emt 0:05:01][%cal Rf5d4]} 10. Ne2 {[%emt 0:00:07]} Bb4+ {[%emt 0:02:09]} 11. Kf2 {[%emt 0:00:07] Black is slightly better.} h5 {[%emt 0:01:35]} 12. g3 {[%emt 0:05:30]} O-O {[%emt 0:04:14]} 13. h3 {[%emt 0:02:09]} (13. a3 {simplifies} Be7 14. Bh3 Nh6 15. Re1) 13... f6 {[%emt 0:11:25] Threatens to win with ...fxe5.} 14. g4 {[%emt 0:00:09] [#] Black continues to play with concentration.} (14. Kg2 $15) 14... Nfxd4 $1 $17 {[%emt 0:03:25] Black is more active.} 15. Be3 {[%emt 0:03:12]} ({Of course not} 15. Nfxd4 fxe5 16. Kg2 exd4 $19 (16... Nxd4 $2 17. Nxd4 Qxd4 18. Qxd4 $19)) (15. Nexd4 $17 fxe5 16. Kg2 (16. a3 $2 Bd6 $19)) 15... fxe5 $19 {[%emt 0:03:08]} 16. Nxe5 {[%emt 0:00:07]} Nxe5 {[%emt 0:02:12]} 17. Qxd4 {[%emt 0:08:02]} Qxd4 {[%emt 0:05:37]} 18. Nxd4 {[%emt 0:00:08]} Ng6 {[%emt 0:01:58]} ({Don't take} 18... hxg4 19. Kg3 Ng6 20. Bd3 $19) 19. Bg2 $2 {[%emt 0:03:38]} (19. f5 $17 {was worth a try.}) 19... Nxf4 {[%emt 0:03:48]} 20. Bxf4 {[%emt 0:00:09]} Bc5 {[%emt 0:02:36]} (20... Rxf4+ $142 21. Ke3 g5 (21... Bd6 $2 22. Raf1 $19)) 21. Ke3 {[%emt 0:00:18]} Bxd4+ {[%emt 0:00:23]} 22. Kxd4 {[%emt 0:00:02] [#] aiming for Be5.} Rxf4+ {[%emt 0:00:02]} 23. Ke3 {[%emt 0:00:01]} Rb4 {[%emt 0:01:06]} 24. b3 {[%emt 0:02:25]} (24. gxh5 $142 Bd7 (24... Rxb2 $2 25. Rhg1 $19) 25. Rhg1) 24... hxg4 {[%emt 0:02:32]} 25. Rac1 {[%emt 0:00:25]} Bd7 {[%emt 0:01:23]} 26. hxg4 {[%emt 0:02:04]} Rxg4 {[%emt 0:02:03]} 27. Bf3 {[%emt 0:00:04]} Rg3 {[%emt 0:01:56] ...Rf8 is the strong threat.} 28. Kf2 {[%emt 0:02:43]} Rg5 {[%emt 0:01:15]} 29. Rhe1 $2 {[%emt 0:00:26]} (29. Rc7 {was necessary.} Bc6 30. Ke1) 29... Rf8 {[%emt 0:01:06] White must now prevent ...e5.} 30. Rc7 {[%emt 0:01:35]} Bc6 {[%emt 0:00:23] Weighted Error Value: White=0.48/Black=0.23 (precise) .  Loses game:     	White=1     	---        Mistake:       	White=4     	Black=1      Inaccurate:     	White=2     	Black=2      OK:         	White=4     	Black=11     Best:        	White=1     	Black=1      Strong:       	---       	Black=1} 0-1